fUSD/lending_fUSD_20240201
["ID","MTS","AMOUNT","RATE_DAILY","PERIOD"]
[313134288,1706795454676,-296.95060011,0.0004,2]
[313134289,1706795454686,-5067.31803968,0.0004,2]
[313134290,1706795454695,-90983.56839047,0.0004,7]
[313134291,1706795454705,-2000.0,0.0004,5]
[313134292,1706795454716,-770.56954137,0.0004,120]
[313134293,1706795454734,-10070.3731346,0.0004,2]
[313134294,1706795454757,-2007.8311,0.0004,5]
[313134295,1706795454767,-2000.0,0.0004,5]
[313134296,1706795454776,-1003.29237495,0.0004,2]
[313134297,1706795454787,-17110.36,0.0004,2]
[313134298,1706795454796,-1000.0,0.0004,6]
[313134299,1706795454807,-7850.0,0.0004,7]
[313134300,1706795454816,-894.77577183,0.0004,7]
[313134301,1706795454826,-5000.0,0.0004,30]
[313134302,1706795454835,-2108.23309576,0.0004,15]
[313134303,1706795454846,-1010.84512886,0.0004,90]
[313134304,1706795454856,-5857.55791827,0.0004,2]
[313134305,1706795454865,-225.87561626,0.0004,2]
[313134306,1706795454876,-255.0,0.0004,12]
[313134307,1706795454886,-278.23855207,0.0004,12]
[313134308,1706795454896,-443.0,0.0004,29]
[313134309,1706795454905,-200.0,0.0004,41]
[313134310,1706795454915,-500.0,0.0004,4]
[313134311,1706795454924,-1000.0,0.0004,7]
[313134312,1706795454934,-500.0,0.0004,7]
[313134313,1706795454944,-500.0,0.0004,4]
[313134314,1706795454953,-6086.0,0.0004,4]
[313134315,1706795454963,-500.9,0.0004,4]
[313134316,1706795454973,-500.0,0.0004,4]
[313134317,1706795454983,-500.0,0.0004,2]
[313134318,1706795454992,-500.0,0.0004,4]
[313134319,1706795455001,-500.0,0.0004,4]
[313134320,1706795455011,-806.12467479,0.0004,60]
[313134321,1706795455020,-500.0,0.0004,4]
[313134322,1706795455030,-528.03385222,0.0004,4]
[313134323,1706795455039,-255.0,0.0004,12]
[313134324,1706795455049,-500.0,0.0004,2]
[313134325,1706795455060,-500.0,0.0004,4]
[313134326,1706795455069,-918.04,0.0004,4]
[313134327,1706795455079,-500.0,0.0004,4]
[313134328,1706795455089,-621.0,0.0004,4]
[313134329,1706795455099,-500.0,0.0004,4]
[313134330,1706795455110,-500.0,0.0004,4]
[313134331,1706795455120,-500.0,0.0004,4]
[313134332,1706795455146,-500.0,0.0004,4]
[313134333,1706795455164,-500.0,0.0004,4]
[313134334,1706795455181,-532.35,0.0004,4]
[313134335,1706795455198,-1038.98,0.0004,4]
[313134336,1706795455211,-500.0,0.0004,4]
[313134337,1706795455228,-630.44,0.0004,4]
[313134338,1706795455243,-500.0,0.0004,4]
[313134339,1706795455259,-855.46,0.0004,4]
[313134340,1706795455275,-510.57239228,0.0004,4]
[313134341,1706795455291,-500.0,0.0004,4]
[313134342,1706795455307,-7491.3,0.0004,4]
[313134343,1706795455322,-649.07,0.0004,4]
[313134344,1706795455337,-500.0,0.0004,4]
[313134345,1706795455350,-1993.07,0.0004,4]
[313134346,1706795455363,-5037.04,0.0004,4]
[313134347,1706795455376,-1000.0,0.0004,7]
[313134348,1706795455389,-664.31,0.0004,4]
[313134349,1706795455406,-500.0,0.0004,4]
[313134350,1706795455420,-1589.64,0.0004,4]
[313134351,1706795455434,-500.0,0.0004,4]
[313134352,1706795455445,-1069.77,0.0004,4]
[313134353,1706795455456,-731.97,0.0004,4]
[313134354,1706795455474,-500.0,0.0004,4]
[313134355,1706795455490,-500.0,0.0004,4]
[313134356,1706795455503,-500.0,0.0004,4]
[313134357,1706795455521,-500.0,0.0004,4]
[313134358,1706795455534,-552.56,0.0004,4]
[313134359,1706795455546,-500.0,0.0004,4]
[313134360,1706795455564,-255.0,0.0004,12]
[313134361,1706795455577,-500.0,0.0004,4]
[313134362,1706795455591,-500.0,0.0004,4]
[313134363,1706795455604,-586.13,0.0004,4]
[313134364,1706795455618,-500.0,0.0004,4]
[313134365,1706795455632,-500.0,0.0004,4]
[313134366,1706795455646,-500.0,0.0004,4]
[313134367,1706795455657,-640.32291566,0.0004,4]
[313134368,1706795455667,-500.0,0.0004,4]
[313134369,1706795455678,-500.0,0.0004,2]
[313134370,1706795455689,-775.07,0.0004,4]
[313134371,1706795455701,-500.0,0.0004,4]
[313134372,1706795455714,-500.0,0.0004,4]
[313134373,1706795455726,-500.0,0.0004,4]
[313134374,1706795455743,-500.0,0.0004,4]
[313134375,1706795455755,-500.0,0.0004,4]
[313134376,1706795455766,-500.0,0.0004,4]
[313134377,1706795455778,-842.52,0.0004,4]
[313134378,1706795455791,-500.0,0.0004,4]
[313134379,1706795455805,-239.70753015,0.0004,4]
[313134380,1706795455819,-500.0,0.0004,4]
[313134381,1706795455830,-500.0,0.0004,4]
[313134382,1706795455843,-500.0,0.0004,5]
[313134383,1706795455857,-500.0,0.0004,4]
[313134384,1706795455870,-500.0,0.0004,4]
[313134385,1706795455883,-623.0,0.0004,5]
[313134386,1706795455895,-1135.03,0.0004,4]
[313134387,1706795455907,-500.0,0.0004,4]
[313134388,1706795455919,-500.0,0.0004,4]
[313134389,1706795455931,-500.0,0.0004,4]
[313134390,1706795455943,-500.0,0.0004,4]
[313134391,1706795455956,-539.73,0.0004,4]
[313134392,1706795455968,-1000.0,0.0004,2]
[313134393,1706795455981,-500.0,0.0004,4]
[313134394,1706795455994,-500.0,0.0004,4]
[313134395,1706795456006,-500.0,0.0004,4]
[313134396,1706795456018,-500.0,0.0004,4]
[313134397,1706795456030,-500.0,0.0004,4]
[313134398,1706795456043,-500.0,0.0004,4]
[313134399,1706795456055,-500.0,0.0004,4]
[313134400,1706795456067,-500.0,0.0004,4]
[313134401,1706795456079,-5016.23380532,0.00040016,5]
[313134402,1706795456090,-150.0,0.00040052,2]
[313134403,1706795456102,-500.0,0.00040069,7]
[313134404,1706795456113,-945.0,0.00040082,7]
[313134405,1706795456125,-584.0,0.00040082,7]
[313134406,1706795456137,-583.0,0.00040082,7]
[313134407,1706795456148,-1000.0,0.00040098,2]
[313134408,1706795456160,-151.09636107,0.000401,2]
[313134409,1706795456171,-156.64,0.000401,7]
[313134410,1706795456183,-951.0,0.000401,7]
[313134411,1706795456194,-16664.08288245,0.00040106,2]
[313134412,1706795456206,-75000.0,0.00040137,15]
[313134413,1706795456218,-22454.42901305,0.00040142,5]
[313134414,1706795456229,-250.0,0.0004016,2]
[313134415,1706795456240,-211.0,0.0004016,2]
[313134416,1706795456251,-152.0,0.0004017,10]
[313134417,1706795456262,-151.0201,0.00040198,12]
[313134418,1706795456274,-1000.0,0.000402,30]
[313134419,1706795456285,-176.15163199,0.000402,30]
[313134420,1706795456296,-3834.772004,0.00040213,2]
[313134421,1706795456310,-1095.649144,0.00040213,2]
[313134422,1706795456321,-547.824572,0.00040213,2]
[313134423,1706795456333,-547.824572,0.00040213,2]
[313134424,1706795456345,-3333.891924,0.00040213,2]
[313134425,1706795456356,-245.549011,0.00040213,2]
[313134426,1706795456368,-337.71,0.00040262,2]
[313134427,1706795456379,-155.3,0.00040269,2]
[313134428,1706795456390,-150.0,0.0004027,120]
[313134429,1706795456402,-178.652213,0.00040291,2]
[313134430,1706795456415,-178.652212,0.00040291,2]
[313134431,1706795456426,-2005.78,0.0004031,2]
[313134432,1706795456437,-500.0,0.00040342,7]
[313134433,1706795456448,-945.0,0.00040427,7]
[313134434,1706795456460,-584.0,0.00040427,7]
[313134435,1706795456472,-583.0,0.00040427,7]
[313134436,1706795456487,-151.0201,0.00040498,12]
[313134437,1706795456498,-38388.58141419,0.000405,2]
[313134438,1706795456510,-300.0,0.000405,15]
[313134439,1706795456523,-443.0,0.000405,30]
[313134440,1706795456534,-1337.94,0.00040547,4]
[313134441,1706795456545,-500.0,0.00040547,4]
[313134442,1706795456559,-1000.0,0.00040547,7]
[313134443,1706795456572,-500.0,0.00040547,7]
[313134444,1706795456583,-500.0,0.00040547,4]
[313134445,1706795456594,-500.9,0.00040547,4]
[313134446,1706795456605,-360.61989258,0.00040547,4]
[313134447,1706795456618,-500.0,0.00040547,2]
[313134448,1706795456630,-500.0,0.00040547,4]
[313134449,1706795456641,-500.0,0.00040547,4]
[313134450,1706795456653,-500.0,0.00040547,4]
[313134451,1706795456664,-500.0,0.00040547,2]
[313134452,1706795456675,-500.0,0.00040547,4]
[313134453,1706795456686,-918.04,0.00040547,4]
[313134454,1706795456698,-500.0,0.00040547,4]
[313134455,1706795456709,-609.113317,0.00040547,4]
[313134456,1706795456721,-500.0,0.00040547,4]
[313134457,1706795456733,-500.0,0.00040547,4]
[313134458,1706795456744,-500.0,0.00040547,4]
[313134459,1706795456755,-193.18931622,0.00040547,4]
[313134460,1706795456766,-532.35,0.00040547,4]
[313134461,1706795456778,-1038.98,0.00040547,4]
[313134462,1706795456789,-500.0,0.00040547,4]
[313134463,1706795456801,-630.44,0.00040547,4]
[313134464,1706795456812,-500.0,0.00040547,4]
[313134465,1706795456824,-855.46,0.00040547,4]
[313134466,1706795456835,-500.0,0.00040547,4]
[313134467,1706795456846,-7491.3,0.00040547,4]
[313134468,1706795456858,-649.07,0.00040547,4]
[313134469,1706795456870,-500.0,0.00040547,4]
[313134470,1706795456882,-1993.07,0.00040547,4]
[313134471,1706795456893,-5037.04,0.00040547,4]
[313134472,1706795456905,-1000.0,0.00040547,7]
[313134473,1706795456916,-664.31,0.00040547,4]
[313134474,1706795456928,-500.0,0.00040547,4]
[313134475,1706795456940,-1589.64,0.00040547,4]
[313134476,1706795456951,-500.0,0.00040547,4]
[313134477,1706795456963,-1069.77,0.00040547,4]
[313134478,1706795456974,-731.97,0.00040547,4]
[313134479,1706795456985,-500.0,0.00040547,4]
[313134480,1706795456997,-500.0,0.00040547,4]
[313134481,1706795457008,-500.0,0.00040547,4]
[313134482,1706795457027,-500.0,0.00040547,4]
[313134483,1706795457039,-552.56,0.00040547,4]
[313134484,1706795457049,-500.0,0.00040547,4]
[313134485,1706795457061,-500.0,0.00040547,4]
[313134486,1706795457072,-500.0,0.00040547,4]
[313134487,1706795457083,-586.13,0.00040547,4]
[313134488,1706795457094,-500.0,0.00040547,4]
[313134489,1706795457105,-500.0,0.00040547,4]
[313134490,1706795457116,-500.0,0.00040547,4]
[313134491,1706795457127,-500.0,0.00040547,4]
[313134492,1706795457138,-500.0,0.00040547,2]
[313134493,1706795457149,-775.07,0.00040547,4]
[313134494,1706795457160,-500.0,0.00040547,4]
[313134495,1706795457171,-500.0,0.00040547,4]
[313134496,1706795457188,-500.0,0.00040547,4]
[313134497,1706795457199,-500.0,0.00040547,4]
[313134498,1706795457210,-500.0,0.00040547,4]
[313134499,1706795457221,-500.0,0.00040547,4]
[313134500,1706795457231,-842.52,0.00040547,4]
[313134501,1706795457240,-500.0,0.00040547,4]
[313134502,1706795457250,-500.0,0.00040547,4]
[313134503,1706795457259,-279.53974607,0.00040547,4]
[313134504,1706795457503,-500.0,0.00040547,5]
[313134505,1706795457524,-500.0,0.00040547,4]
[313134506,1706795457540,-500.0,0.00040547,4]
[313134507,1706795457550,-623.0,0.00040547,5]
[313134508,1706795457560,-1135.03,0.00040547,4]
[313134509,1706795457569,-500.0,0.00040547,4]
[313134510,1706795457578,-500.0,0.00040547,4]
[313134511,1706795457588,-641.57430375,0.00040547,4]
[313134512,1706795457597,-500.0,0.00040547,4]
[313134513,1706795457607,-539.73,0.00040547,4]
[313134514,1706795457617,-500.0,0.00040547,4]
[313134515,1706795457626,-500.0,0.00040547,4]
[313134516,1706795457636,-443.35983626,0.00040547,4]
[313134517,1706795457645,-500.0,0.00040547,4]
[313134518,1706795457655,-500.0,0.00040547,4]
[313134519,1706795457664,-500.0,0.00040547,4]
[313134520,1706795457674,-500.0,0.00040547,4]
[313134521,1706795457683,-500.0,0.00040547,4]
[313134522,1706795457692,-158.856589,0.00040598,30]
[313134523,1706795457701,-1396.96,0.000406,7]
[313134524,1706795457710,-500.0,0.00040615,7]
[313134525,1706795457720,-313.74,0.0004064,2]
[313134526,1706795457729,-3834.772004,0.00040698,2]
[313134527,1706795457738,-1095.649144,0.00040698,2]
[313134528,1706795457748,-547.824572,0.00040698,2]
[313134529,1706795457757,-173.101964,0.00040698,2]
[313134530,1706795457766,-547.824572,0.00040698,2]
[313134531,1706795457775,-3333.891924,0.00040698,2]
[313134532,1706795457784,-245.549011,0.00040698,2]
[313134533,1706795457793,-172.459649,0.00040698,2]
[313134534,1706795457802,-150.0,0.00040698,2]
[313134535,1706795457812,-2423.60579635,0.00040716,2]
[313134536,1706795457822,-1000.0,0.00040733,2]
[313134537,1706795457833,-945.0,0.00040772,7]
[313134538,1706795457843,-584.0,0.00040772,7]
[313134539,1706795457852,-583.0,0.00040772,7]
[313134540,1706795457862,-1233.0,0.0004079,2]
[313134541,1706795457872,-151.0201,0.00040798,12]
[313134542,1706795457881,-250.0,0.0004083,2]
[313134543,1706795457890,-211.0,0.0004083,2]
[313134544,1706795457899,-388.90758963,0.00040834,10]
[313134545,1706795457908,-2841.72598853,0.00040834,30]
[313134546,1706795457917,-278.2722498,0.00040834,10]
[313134547,1706795457926,-1127.10030445,0.00040834,10]
[313134548,1706795457936,-3024.82371905,0.00040834,30]
[313134549,1706795457946,-190.51225981,0.00040834,10]
[313134550,1706795457956,-1521.30481222,0.00040834,10]
[313134551,1706795457965,-248.60486051,0.00040834,10]
[313134552,1706795457974,-847.03177968,0.00040834,30]
[313134553,1706795457983,-286.51842348,0.00040834,10]
[313134554,1706795457993,-254.06084261,0.00040834,10]
[313134555,1706795458002,-1182.47423469,0.00040834,30]
[313134556,1706795458011,-580.9138582,0.00040834,10]
[313134557,1706795458021,-1716.83580002,0.00040834,30]
[313134558,1706795458032,-302.32134841,0.00040834,10]
[313134559,1706795458042,-381.02451961,0.00040834,10]
[313134560,1706795458051,-291.28021761,0.00040834,10]
[313134561,1706795458062,-535.24938634,0.00040834,30]
[313134562,1706795458071,-1000.0,0.00040834,10]
[313134563,1706795458081,-10000.0,0.00040888,2]
[313134564,1706795458090,-500.0,0.00040889,7]
[313134565,1706795458099,-152.0,0.0004095,11]
[313134566,1706795458108,-200.0,0.00040987,21]
[313134567,1706795458117,-200.0,0.00040987,20]
[313134568,1706795458126,-178.38782152,0.00040995,15]
[313134569,1706795458137,-100000.0,0.00041,21]
[313134570,1706795458147,-800.0,0.00041,2]
[313134571,1706795458156,-3000.0,0.00041,14]
[313134572,1706795458166,-20000.0,0.00041,4]
[313134573,1706795458175,-600.0,0.00041,42]
[313134574,1706795458184,-1000.0,0.00041,5]
[313134575,1706795458194,-10000.0,0.00041,8]
[313134576,1706795458205,-10000.0,0.00041,2]
[313134577,1706795458214,-1000.0,0.00041,30]
[313134578,1706795458225,-200.0,0.00041,30]
[313134579,1706795458235,-2006.18,0.00041,6]
[313134580,1706795458244,-443.0,0.00041,30]
[313134581,1706795458255,-200.0,0.00041,45]
[313134582,1706795458264,-151.12552605,0.0004105,10]
[313134583,1706795458273,-815.34337848,0.00041062,13]
[313134584,1706795458282,-815.34337846,0.00041062,13]
[313134585,1706795458292,-180.0,0.00041091,2]
[313134586,1706795458301,-173.44537063,0.00041095,120]
[313134587,1706795458312,-1337.94,0.00041095,4]
[313134588,1706795458321,-583.74508339,0.00041095,4]
[313134589,1706795458330,-500.0,0.00041095,4]
[313134590,1706795458339,-500.0,0.00041095,4]
[313134591,1706795458348,-500.0,0.00041095,4]
[313134592,1706795458357,-500.0,0.00041095,4]
[313134593,1706795458366,-472.46865384,0.00041095,4]
[313134594,1706795458375,-1000.0,0.00041095,7]
[313134595,1706795458384,-500.0,0.00041095,7]
[313134596,1706795458393,-500.0,0.00041095,4]
[313134597,1706795458402,-500.9,0.00041095,4]
[313134598,1706795458411,-381.80581301,0.00041095,2]
[313134599,1706795458420,-500.0,0.00041095,4]
[313134600,1706795458430,-500.0,0.00041095,4]
[313134601,1706795458439,-500.0,0.00041095,4]
[313134602,1706795458449,-500.0,0.00041095,2]
[313134603,1706795458458,-2638.45,0.00041095,30]
[313134604,1706795458470,-2638.45,0.00041095,30]
[313134605,1706795458479,-2638.45,0.00041095,30]
[313134606,1706795458489,-2638.45,0.00041095,30]
[313134607,1706795458498,-2638.45,0.00041095,30]
[313134608,1706795458509,-2638.45,0.00041095,30]
[313134609,1706795458517,-500.0,0.00041095,4]
[313134610,1706795458528,-918.04,0.00041095,4]
[313134611,1706795458537,-500.0,0.00041095,30]
[313134612,1706795458546,-500.0,0.00041095,30]
[313134613,1706795458557,-320.7267008,0.00041095,30]
[313134614,1706795458567,-500.0,0.00041095,4]
[313134615,1706795458574,-500.0,0.00041095,4]
[313134616,1706795458584,-500.0,0.00041095,4]
[313134617,1706795458594,-500.0,0.00041095,4]
[313134618,1706795458605,-532.35,0.00041095,4]
[313134619,1706795458616,-1038.98,0.00041095,4]
[313134620,1706795458626,-500.0,0.00041095,4]
[313134621,1706795458636,-630.44,0.00041095,4]
[313134622,1706795458647,-500.0,0.00041095,4]
[313134623,1706795458657,-855.46,0.00041095,4]
[313134624,1706795458667,-500.0,0.00041095,4]
[313134625,1706795458678,-7491.3,0.00041095,4]
[313134626,1706795458691,-649.07,0.00041095,4]
[313134627,1706795458702,-1993.07,0.00041095,4]
[313134628,1706795458713,-5037.04,0.00041095,4]
[313134629,1706795458724,-1000.0,0.00041095,7]
[313134630,1706795458735,-664.31,0.00041095,4]
[313134631,1706795458747,-500.0,0.00041095,4]
[313134632,1706795458758,-1589.64,0.00041095,4]
[313134633,1706795458768,-410.42449476,0.00041095,4]
[313134634,1706795458778,-1069.77,0.00041095,4]
[313134635,1706795458790,-731.97,0.00041095,4]
[313134636,1706795458800,-500.0,0.00041095,4]
[313134637,1706795458818,-500.0,0.00041095,4]
[313134638,1706795458828,-500.0,0.00041095,4]
[313134639,1706795458839,-249.12788343,0.00041095,4]
[313134640,1706795458851,-552.56,0.00041095,4]
[313134641,1706795458866,-500.0,0.00041095,4]
[313134642,1706795458878,-500.0,0.00041095,4]
[313134643,1706795458888,-500.0,0.00041095,4]
[313134644,1706795458899,-586.13,0.00041095,4]
[313134645,1706795458909,-500.0,0.00041095,4]
[313134646,1706795458920,-187.61712689,0.00041095,4]
[313134647,1706795458931,-500.0,0.00041095,4]
[313134648,1706795458942,-500.0,0.00041095,4]
[313134649,1706795458952,-500.0,0.00041095,2]
[313134650,1706795458964,-775.07,0.00041095,4]
[313134651,1706795458974,-500.0,0.00041095,4]
[313134652,1706795458984,-500.0,0.00041095,4]
[313134653,1706795458994,-500.0,0.00041095,4]
[313134654,1706795459005,-500.0,0.00041095,4]
[313134655,1706795459015,-500.0,0.00041095,4]
[313134656,1706795459025,-500.0,0.00041095,4]
[313134657,1706795459035,-842.52,0.00041095,4]
[313134658,1706795459045,-500.0,0.00041095,4]
[313134659,1706795459060,-500.0,0.00041095,4]
[313134660,1706795459070,-500.0,0.00041095,5]
[313134661,1706795459079,-500.0,0.00041095,4]
[313134662,1706795459090,-500.0,0.00041095,4]
[313134663,1706795459099,-623.0,0.00041095,5]
[313134664,1706795459109,-1135.03,0.00041095,4]
[313134665,1706795459119,-500.0,0.00041095,4]
[313134666,1706795459128,-500.0,0.00041095,4]
[313134667,1706795459139,-500.0,0.00041095,4]
[313134668,1706795459149,-539.73,0.00041095,4]
[313134669,1706795459158,-500.0,0.00041095,4]
[313134670,1706795459168,-500.0,0.00041095,4]
[313134671,1706795459178,-500.0,0.00041095,4]
[313134672,1706795459188,-500.0,0.00041095,4]
[313134673,1706795459198,-500.0,0.00041095,4]
[313134674,1706795459209,-500.0,0.00041095,4]
[313134675,1706795459219,-500.0,0.00041095,4]
[313134676,1706795459228,-151.0,0.00041096,7]
[313134677,1706795459238,-151.0,0.00041096,7]
[313134678,1706795459247,-151.0,0.00041096,7]
[313134679,1706795459256,-151.0,0.00041096,7]
[313134680,1706795459266,-151.0,0.00041096,7]
[313134681,1706795459276,-151.0,0.00041096,7]
[313134682,1706795459288,-151.0,0.00041096,7]
[313134683,1706795459298,-151.0,0.00041096,7]
[313134684,1706795459308,-151.0,0.00041096,7]
[313134685,1706795459318,-151.0,0.00041096,7]
[313134686,1706795459328,-151.0,0.00041096,7]
[313134687,1706795459337,-151.0,0.00041096,7]
[313134688,1706795459347,-151.0,0.00041096,7]
[313134689,1706795459357,-151.0,0.00041096,7]
[313134690,1706795459367,-151.0,0.00041096,7]
[313134691,1706795459377,-151.0,0.00041096,7]
[313134692,1706795459386,-156.728962,0.00041096,7]
[313134693,1706795459395,-151.0,0.00041096,14]
[313134694,1706795459404,-151.0,0.00041096,14]
[313134695,1706795459414,-151.0,0.00041096,14]
[313134696,1706795459423,-151.0,0.00041096,14]
[313134697,1706795459432,-151.0,0.00041096,14]
[313134698,1706795459442,-151.0,0.00041096,14]
[313134699,1706795459451,-151.0,0.00041096,14]
[313134700,1706795459461,-151.0,0.00041096,14]
[313134701,1706795459472,-151.0,0.00041096,14]
[313134702,1706795459481,-234.228833,0.00041096,14]
[313134703,1706795459494,-151.0,0.00041096,14]
[313134704,1706795459503,-151.0,0.00041096,14]
[313134705,1706795459513,-151.0,0.00041096,14]
[313134706,1706795459523,-151.0,0.00041096,14]
[313134707,1706795459533,-151.0,0.00041096,14]
[313134708,1706795459542,-151.0,0.00041096,14]
[313134709,1706795459552,-151.0,0.00041096,14]
[313134710,1706795459563,-151.0,0.00041096,14]
[313134711,1706795459572,-151.0,0.00041096,14]
[313134712,1706795459582,-151.0,0.00041096,14]
[313134713,1706795459591,-151.0,0.00041096,14]
[313134714,1706795459600,-151.0,0.00041096,14]
[313134715,1706795459610,-161.722041,0.00041096,14]
[313134716,1706795459619,-151.0,0.00041096,14]
[313134717,1706795459629,-151.0,0.00041096,14]
[313134718,1706795459638,-196.122199,0.00041096,14]
[313134719,1706795459648,-155.408804,0.00041096,14]
[313134720,1706795459658,-151.0,0.00041096,2]
[313134721,1706795459667,-151.0,0.00041096,2]
[313134722,1706795459677,-151.0,0.00041096,2]
[313134723,1706795459687,-151.0,0.00041096,2]
[313134724,1706795459697,-151.0,0.00041096,2]
[313134725,1706795459707,-151.0,0.00041096,2]
[313134726,1706795459716,-151.0,0.00041096,2]
[313134727,1706795459726,-243.599553,0.00041096,2]
[313134728,1706795459735,-150.0,0.00041096,2]
[313134729,1706795459744,-155.283611,0.00041096,14]
[313134730,1706795459754,-372.569252,0.00041096,7]
[313134731,1706795459763,-372.569252,0.00041096,7]
[313134732,1706795459773,-372.569252,0.00041096,7]
[313134733,1706795459782,-372.569252,0.00041096,7]
[313134734,1706795459791,-372.569252,0.00041096,7]
[313134735,1706795459801,-372.569252,0.00041096,7]
[313134736,1706795459812,-372.569252,0.00041096,7]
[313134737,1706795459821,-372.569252,0.00041096,7]
[313134738,1706795459830,-372.569252,0.00041096,7]
[313134739,1706795459839,-372.569252,0.00041096,7]
[313134740,1706795459849,-372.569252,0.00041096,7]
[313134741,1706795459859,-372.569252,0.00041096,7]
[313134742,1706795459869,-372.569252,0.00041096,7]
[313134743,1706795459878,-372.569252,0.00041096,7]
[313134744,1706795459888,-372.569252,0.00041096,7]
[313134745,1706795459897,-372.569252,0.00041096,7]
[313134746,1706795459907,-372.569252,0.00041096,7]
[313134747,1706795459916,-372.569252,0.00041096,7]
[313134748,1706795459926,-372.569252,0.00041096,7]
[313134749,1706795459935,-372.569242,0.00041096,7]
[313134750,1706795459944,-203.231865,0.00041096,14]
[313134751,1706795459958,-156.810571,0.00041096,14]
[313134752,1706795459967,-151.0,0.00041096,7]
[313134753,1706795459977,-151.0,0.00041096,7]
[313134754,1706795459986,-151.0,0.00041096,7]
[313134755,1706795459996,-151.0,0.00041096,7]
[313134756,1706795460006,-151.0,0.00041096,7]
[313134757,1706795460015,-151.0,0.00041096,7]
[313134758,1706795460025,-151.0,0.00041096,7]
[313134759,1706795460034,-151.0,0.00041096,7]
[313134760,1706795460043,-151.0,0.00041096,7]
[313134761,1706795460053,-151.0,0.00041096,7]
[313134762,1706795460064,-151.0,0.00041096,7]
[313134763,1706795460074,-151.0,0.00041096,7]
[313134764,1706795460084,-151.0,0.00041096,7]
[313134765,1706795460094,-151.0,0.00041096,7]
[313134766,1706795460103,-151.0,0.00041096,7]
[313134767,1706795460113,-191.541125,0.00041096,7]
[313134768,1706795460123,-157.572425,0.00041096,14]
[313134769,1706795460132,-167.946863,0.00041096,14]
[313134770,1706795460141,-151.0,0.00041096,14]
[313134771,1706795460151,-151.0,0.00041096,14]
[313134772,1706795460161,-151.0,0.00041096,14]
[313134773,1706795460170,-151.0,0.00041096,14]
[313134774,1706795460179,-151.0,0.00041096,14]
[313134775,1706795460189,-151.0,0.00041096,14]
[313134776,1706795460198,-151.0,0.00041096,14]
[313134777,1706795460207,-151.0,0.00041096,14]
[313134778,1706795460217,-151.0,0.00041096,14]
[313134779,1706795460227,-151.0,0.00041096,14]
[313134780,1706795460238,-152.006145,0.00041096,14]
[313134781,1706795460248,-151.0,0.00041096,14]
[313134782,1706795460258,-183.553139,0.00041096,14]
[313134783,1706795460268,-172.67,0.00041096,2]
[313134784,1706795460278,-166.529604,0.00041096,14]
[313134785,1706795460287,-992.618344,0.00041096,14]
[313134786,1706795460297,-992.618344,0.00041096,14]
[313134787,1706795460308,-992.618344,0.00041096,14]